{"text_format":"1","workbook":"xlsx","n_sheets":7,"sheets":["Framside","1A","2A","3A","3B","3C","Kilde"],"not_rendered":{"charts":0,"images":37,"macros":1,"external_links":0,"defined_names":7,"comments":0,"pivot_tables":0},"unopened":[],"bounds":{"document_bytes":16777216,"sheet_cells":100000,"rows_first":2000,"rows_last":500,"rows_between":2000,"halvings":0,"cell_chars":16384,"cell_head_chars":4096},"cells_cut":0,"cells_raw":0,"read":"whole","date_system":"1900"}

{"sheet":"Framside","index":0,"n_rows":3,"n_cols":2,"rows_kept":3,"cut":false,"hidden":false,"merged":[[2,1,2,12],[0,1,1,12]]}
[null,"Jordings- og kortslutningsapparater"]
[]
[null,"I henhold til NEK-EN 61230:2008"]

{"sheet":"1A","index":1,"n_rows":41,"n_cols":20,"rows_kept":41,"cut":false,"hidden":false,"merged":[[32,17,34,17],[15,18,17,18],[15,19,17,19],[27,18,28,19],[32,18,34,18],[32,19,34,19],[26,12,26,14],[4,5,4,10],[0,2,1,8],[1,12,1,13],[1,14,1,17],[13,2,14,2],[5,5,5,8],[6,8,12,10],[31,3,31,4],[13,8,14,8],[13,7,14,7],[13,5,14,5],[13,4,14,4],[13,3,14,3],[19,4,20,4],[26,3,26,4],[13,1,14,1],[27,3,27,4],[29,3,29,4],[30,3,30,4],[19,1,20,2],[21,1,21,2],[16,2,16,3],[17,2,17,3]]}
[]
[null,null,null,null,null,null,null,null,null,null,null,null,"Faseklemmer",null,"Maks kortslutningsstrøm kA/1sek"]
[null,null,null,null,null,null,null,null,null,null,null,null,"El nr","Type","Line","Skinne","rør / bolt","Krok"]
[null,null,null,null,null,null,null,null,null,null,null,null,2878700,"JFS17","-","-","-",24]
[null,null,null,null,null,"Jordings- og kortslutningsapparater",null,null,null,null,null,null,2878702,"JK39FN",19,14,14,"-"]
[null,null,null,null,null,"I henhold til NEK-EN 61230:2008",null,null,null,null,"Kommentarfelt",null,2878703,"JK39FN SP",19,14,14,"-"]
[null,null,null,null,null,null,null,null,null,null,null,null,2878705,"JK38",14,14,14,"-"]
[null,null,null,null,null,null,null,null,null,null,null,null,2878706,"JK42",24,"-","-","-"]
[null,null,null,null,null,null,null,null,null,null,null,null,2878778,"JK37",14,14,14,"-"]
[null,null,null,null,null,null,null,null,null,null,null,null,2878796,"PARA",10,"-","-","-"]
[null,null,null,null,null,null,null,null,null,null,null,null,2879202,784470,14,"-","-","-"]
[null,null,null,null,null,null,null,null,null,null,null,null,2879238,"784470S",14,"-","-","-"]
[null,null,null,null,null,null,null,null,null,null,null,null,2879571,"NB2025BN",24,24,24,"-"]
[null,"Type","kA/1 sek","eller","Tverrsnitt lisse (B)","Lengde lisse (B)",null,"Tverrsnitt lisse (C)","Lengde \nlisse (C)"]
[null,null,null,null,null,null,null,null,null,null,null,null,null,null,null,null,null,null,"IEC 61230:2008 Table 2"]
[null,"1A","-",null,"-","-",{"$f":"E16&\"|\"&F16","v":"-|-"},"-","-",{"$f":"H16&\"|\"&I16","v":"-|-"},null,null,null,null,null,null,null,null,"CU tverrsnitt mm²","Min. CU ekvivalent mm²"]
[null,null,"Midtre fase",null,"-","-",{"$f":"E17&\"|\"&F17","v":"-|-"}]
[null,null,"Ytre fase",null,"-","-",{"$f":"E18&\"|\"&F18","v":"-|-"}]
[null,null,null,null,null,null,null,null,null,null,null,null,2878700,"2878702-03",2878705,2878706,2878778,null,25,16]
[null,"Faseklemme\n(A)",null,null,"Jordklemme\n(D)",null,null,"Ikmaks/1s=",{"$f":"E16/5","v":{"$error":"#VALUE!"}},null,null,null,null,null,null,null,null,null,35,16]
[null,null,null,null,null,null,null,"Ikmaks/0,5s=",{"$f":"I20*1.41","v":{"$error":"#VALUE!"}},null,null,null,null,null,null,null,null,null,50,25]
[null,"-",null,null,"-",null,null,null,null,null,null,null,null,null,null,null,null,null,70,35]
[null,null,null,null,null,null,null,null,null,null,null,null,null,null,null,null,null,null,95,35]
[null,null,null,null,null,null,null,null,null,null,null,null,2878796,2879202,2879238,2879571,null,null,120,50]
[]
[]
[null,null,"TYPE:",{"$f":"CONCATENATE(B16,\" \",B22,\"/\",E22)","v":"1A -/-"},null,null,null,"Forslag:",null,null,null,null,"Jordfesteklemmer"]
[null,null,"Faselisse:",{"$f":"CONCATENATE(E16,\"mm²\")","v":"-mm²"},null,"A",null,"Faseklemme",{"$f":"VLOOKUP(B22,Kilde!J:K,2,FALSE)","v":0},null,"3 stk",null,"El nr","Type","Ikmaks/1sek",null,null,null,"Redusert tverrsnitt jordlisse punkt \"C\""]
[null,null,"Jordlisse:",{"$f":"CONCATENATE(H16,\"mm²\")","v":"-mm²"},null,"B",null,"Faselisse",{"$f":"VLOOKUP(G16,Kilde!$F:$G,2,FALSE)","v":{"$error":"#N/A"}},null,"3 stk",null,2878710,"JK30","7 kA"]
[null,null,"Ik maks 1s:",{"$f":"CONCATENATE(I20,\"kA\",\"-\",\"1s\",\"-\",2.5)","v":{"$error":"#VALUE!"}},null,"B",null,"Faselisse",{"$f":"VLOOKUP(G17,Kilde!F:G,2,FALSE)","v":{"$error":"#N/A"}},null,"1 stk (midtre fase)",null,2878711,"JKS30","7 kA"]
[null,null,"Ik maks 0,5s:",{"$f":"CONCATENATE(I21,\"kA\",\"-\",\"0,5s\",\"-\",2.5)","v":{"$error":"#VALUE!"}},null,"B",null,"Faselisse",{"$f":"VLOOKUP(G18,Kilde!F:G,2,FALSE)","v":{"$error":"#N/A"}},null,"2 stk (ytre fase)",null,2878708,"JK150","24 kA",2878710,2878711]
[null,null,"Prod. d.m.år",{"$f":"NOW()","v":"2021-12-16T14:59:16.800"},null,null,null,"Stjernepunkt",2879165,null,"1 stk",null,2878728,"NB2025M","24 kA"]
[null,null,"IEC 61230:2008",null,null,"C",null,"Jordlisse",{"$f":"VLOOKUP(J16,Kilde!F:G,2,FALSE)","v":{"$error":"#N/A"}},null,"1 stk",null,2878729,"F1","24 kA",null,null,"Tverrsnitt","IK1/1 sek i kA","IK1/0,5 sek i kA"]
[null,null,null,null,null,"D",null,"Jordklemme",{"$f":"VLOOKUP(E22,Kilde!N:O,2,FALSE)","v":0},null,"1 stk",null,2878762,"JLA2N","24 kA"]
[null,null,null,null,null,null,null,null,null,null,null,null,2878763,"JLA2NSP","24 kA"]
[null,null,null,null,null,null,null,null,null,null,null,null,null,null,null,null,null,"25mm²",5,7]
[null,null,null,null,null,null,null,null,null,null,null,null,null,null,null,null,null,"35mm²",7,10]
[null,null,null,null,null,null,null,null,null,null,null,null,null,null,null,null,null,"50mm²",10,14]
[null,null,null,null,null,null,null,null,null,null,null,null,null,null,null,null,null,"70mm²",14,20]
[null,null,null,null,null,null,null,null,null,null,null,null,2878708,2878728,2878729,2878762,2878763,"95mm²",19,27]
[null,null,null,null,null,null,null,null,null,null,null,null,null,null,null,null,null,"120mm²",24,34]

{"sheet":"2A","index":2,"n_rows":41,"n_cols":20,"rows_kept":41,"cut":false,"hidden":false,"merged":[[32,19,34,19],[6,8,12,10],[32,17,34,17],[32,18,34,18],[29,3,29,4],[17,2,17,3],[30,3,30,4],[31,3,31,4],[26,12,26,14],[21,1,21,2],[26,3,26,4],[27,3,27,4],[0,2,1,8],[1,12,1,13],[1,14,1,17],[4,5,4,10],[19,1,20,2],[19,4,20,4],[13,5,14,5],[5,5,5,8],[13,1,14,1],[13,2,14,2],[13,3,14,3],[13,4,14,4],[16,2,16,3]]}
[]
[null,null,null,null,null,null,null,null,null,null,null,null,"Faseklemmer",null,"Maks kortslutningsstrøm kA/1sek"]
[null,null,null,null,null,null,null,null,null,null,null,null,"El nr","Type","Line","Skinne","rør / bolt","Krok"]
[null,null,null,null,null,null,null,null,null,null,null,null,2878700,"JFS17","-","-","-",24]
[null,null,null,null,null,"Jordings- og kortslutningsapparater",null,null,null,null,null,null,2878702,"JK39FN",19,14,14,"-"]
[null,null,null,null,null,"I henhold til NEK-EN 61230:2008",null,null,null,null,"Kommentarfelt",null,2878703,"JK39FN SP",19,14,14,"-"]
[null,null,null,null,null,null,null,null,null,null,null,null,2878705,"JK38",14,14,14,"-"]
[null,null,null,null,null,null,null,null,null,null,null,null,2878706,"JK42",24,"-","-","-"]
[null,null,null,null,null,null,null,null,null,null,null,null,2878778,"JK37",14,14,14,"-"]
[null,null,null,null,null,null,null,null,null,null,null,null,2878796,"PARA",10,"-","-","-"]
[null,null,null,null,null,null,null,null,null,null,null,null,2879202,784470,14,"-","-","-"]
[null,null,null,null,null,null,null,null,null,null,null,null,2879238,"784470S",14,"-","-","-"]
[null,null,null,null,null,null,null,null,null,null,null,null,2879571,"NB2025BN",24,24,24,"-"]
[null,"Type","kA/1 sek","eller","Tverrsnitt lisse (B)","Lengde lisse (B)"]
[]
[null,"2A","-",null,"-","-",{"$f":"E16&\"|\"&F16","v":"-|-"},null,null,{"$f":"H16&\"|\"&I16","v":"|"}]
[null,null,"Midtre fase",null,"-","-",{"$f":"E17&\"|\"&F17","v":"-|-"}]
[null,null,"Ytre fase",null,"-","-",{"$f":"E18&\"|\"&F18","v":"-|-"}]
[null,null,null,null,null,null,null,null,null,null,null,null,2878700,"2878702-03",2878705,2878706,2878778]
[null,"Faseklemme\n(A)",null,null,"Jordklemme\n(D)",null,null,"Ikmaks/1s=",{"$f":"E16/5","v":{"$error":"#VALUE!"}}]
[null,null,null,null,null,null,null,"Ikmaks/0,5s=",{"$f":"I20*1.41","v":{"$error":"#VALUE!"}}]
[null,"-",null,null,"JLA2NSP"]
[]
[null,null,null,null,null,null,null,null,null,null,null,null,2878796,2879202,2879238,2879571]
[]
[]
[null,null,"TYPE:",{"$f":"CONCATENATE(B16,\" \",B22,\"/\",E22)","v":"2A -/JLA2NSP"},null,null,null,"Forslag:",null,null,null,null,"Jordfesteklemmer"]
[null,null,"Faselisse:",{"$f":"CONCATENATE(E16,\"mm²\")","v":"-mm²"},null,"A",null,"Faseklemme",{"$f":"VLOOKUP(B22,Kilde!J:K,2,FALSE)","v":0},null,"3 stk",null,"El nr","Type","Ikmaks/1sek"]
[null,null,"Jordlisse:",{"$f":"CONCATENATE(H16,\"mm²\")","v":"mm²"},null,"B",null,"Faselisse",{"$f":"VLOOKUP(G16,Kilde!$F:$G,2,FALSE)","v":{"$error":"#N/A"}},null,"3 stk",null,2878763,"JLA2NSP","24 kA"]
[null,null,"Ik maks 1s:",{"$f":"CONCATENATE(I20,\"kA\",\"-\",\"1s\",\"-\",2.5)","v":{"$error":"#VALUE!"}},null,"B",null,"Faselisse",{"$f":"VLOOKUP(G17,Kilde!F:G,2,FALSE)","v":{"$error":"#N/A"}},null,"1 stk (midtre fase)"]
[null,null,"Ik maks 0,5s:",{"$f":"CONCATENATE(I21,\"kA\",\"-\",\"0,5s\",\"-\",2.5)","v":{"$error":"#VALUE!"}},null,"B",null,"Faselisse",{"$f":"VLOOKUP(G18,Kilde!F:G,2,FALSE)","v":{"$error":"#N/A"}},null,"2 stk (ytre fase)"]
[null,null,"Prod. d.m.år",{"$f":"NOW()","v":"2021-12-16T14:59:16.800"},null,"D",null,"Jordklemme",{"$f":"VLOOKUP(E22,Kilde!N:O,2,FALSE)","v":2878763},null,"1 stk"]
[null,null,"IEC 61230:2008",null,null,null,null,null,null,null,null,null,null,null,null,null,null,"Tverrsnitt","IK1/1 sek i kA","IK1/0,5 sek i kA"]
[]
[null,null,null,null,null,null,null,null,null,null,null,null,2878763]
[null,null,null,null,null,null,null,null,null,null,null,null,null,null,null,null,null,"25mm²",5,7]
[null,null,null,null,null,null,null,null,null,null,null,null,null,null,null,null,null,"35mm²",7,10]
[null,null,null,null,null,null,null,null,null,null,null,null,null,null,null,null,null,"50mm²",10,14]
[null,null,null,null,null,null,null,null,null,null,null,null,null,null,null,null,null,"70mm²",14,20]
[null,null,null,null,null,null,null,null,null,null,null,null,null,null,null,null,null,"95mm²",19,27]
[null,null,null,null,null,null,null,null,null,null,null,null,null,null,null,null,null,"120mm²",24,34]

{"sheet":"3A","index":3,"n_rows":41,"n_cols":20,"rows_kept":41,"cut":false,"hidden":false,"merged":[[27,18,28,19],[32,17,34,17],[32,18,34,18],[32,19,34,19],[6,8,12,10],[15,18,17,18],[15,19,17,19],[29,3,29,4],[13,1,14,1],[13,2,14,2],[13,3,14,3],[13,4,14,4],[16,2,16,3],[17,2,17,3],[30,3,30,4],[31,3,31,4],[26,12,26,14],[0,2,1,8],[1,12,1,13],[1,14,1,17],[13,7,14,7],[13,8,14,8],[4,5,4,10],[19,1,20,2],[19,4,20,4],[21,1,21,2],[26,3,26,4],[27,3,27,4],[13,5,14,5],[5,5,5,8]]}
[]
[null,null,null,null,null,null,null,null,null,null,null,null,"Faseklemmer",null,"Maks kortslutningsstrøm kA/1sek"]
[null,null,null,null,null,null,null,null,null,null,null,null,"El nr","Type","Line","Skinne","rør / bolt","Krok"]
[null,null,null,null,null,null,null,null,null,null,null,null,2878700,"JFS17","-","-","-",24]
[null,null,null,null,null,"Jordings- og kortslutningsapparater",null,null,null,null,null,null,2878702,"JK39FN",19,14,14,"-"]
[null,null,null,null,null,"I henhold til NEK-EN 61230:2008",null,null,null,null,"Kommentarfelt",null,2878703,"JK39FN SP",19,14,14,"-"]
[null,null,null,null,null,null,null,null,null,null,null,null,2878705,"JK38",14,14,14,"-"]
[null,null,null,null,null,null,null,null,null,null,null,null,2878706,"JK42",24,"-","-","-"]
[null,null,null,null,null,null,null,null,null,null,null,null,2878778,"JK37",14,14,14,"-"]
[null,null,null,null,null,null,null,null,null,null,null,null,2878796,"PARA",10,"-","-","-"]
[null,null,null,null,null,null,null,null,null,null,null,null,2879202,784470,14,"-","-","-"]
[null,null,null,null,null,null,null,null,null,null,null,null,2879238,"784470S",14,"-","-","-"]
[null,null,null,null,null,null,null,null,null,null,null,null,2879571,"NB2025BN",24,24,24,"-"]
[null,"Type","kA/1 sek","eller","Tverrsnitt lisse (B)","Lengde lisse (B)",null,"Tverrsnitt lisse (C)","Lengde \nlisse (C)"]
[null,null,null,null,null,null,null,null,null,null,null,null,null,null,null,null,null,null,"IEC 61230:2008 Table 2"]
[null,"3A","-",null,"-","-",{"$f":"E16&\"|\"&F16","v":"-|-"},"-","-",{"$f":"H16&\"|\"&I16","v":"-|-"},null,null,null,null,null,null,null,null,"CU tverrsnitt mm²","Min. CU ekvivalent mm²"]
[null,null,"Midtre fase",null,"-","-",{"$f":"E17&\"|\"&F17","v":"-|-"}]
[null,null,"Ytre fase",null,"-","-",{"$f":"E18&\"|\"&F18","v":"-|-"}]
[null,null,null,null,null,null,null,null,null,null,null,null,2878700,"2878702-03",2878705,2878706,2878778,null,25,16]
[null,"Faseklemme\n(A)",null,null,"Jordklemme\n(D)",null,null,"Ikmaks/1s=",{"$f":"E16/5","v":{"$error":"#VALUE!"}},null,null,null,null,null,null,null,null,null,35,16]
[null,null,null,null,null,null,null,"Ikmaks/0,5s=",{"$f":"I20*1.41","v":{"$error":"#VALUE!"}},null,null,null,null,null,null,null,null,null,50,25]
[null,"-",null,null,"-",null,null,null,null,null,null,null,null,null,null,null,null,null,70,35]
[null,null,null,null,null,null,null,null,null,null,null,null,null,null,null,null,null,null,95,35]
[null,null,null,null,null,null,null,null,null,null,null,null,2878796,2879202,2879238,2879571,null,null,120,50]
[]
[]
[null,null,"TYPE:",{"$f":"CONCATENATE(B16,\" \",B22,\"/\",E22)","v":"3A -/-"},null,null,null,"Forslag:",null,null,null,null,"Jordfesteklemmer"]
[null,null,"Faselisse:",{"$f":"CONCATENATE(E16,\"mm²\")","v":"-mm²"},null,"A",null,"Faseklemme",{"$f":"VLOOKUP(B22,Kilde!J:K,2,FALSE)","v":0},null,"3 stk",null,"El nr","Type","Ikmaks/1sek",null,null,null,"Redusert tverrsnitt jordlisse punkt \"C\""]
[null,null,"Jordlisse:",{"$f":"CONCATENATE(H16,\"mm²\")","v":"-mm²"},null,"B",null,"Faselisse",{"$f":"VLOOKUP(G16,Kilde!$F:$G,2,FALSE)","v":{"$error":"#N/A"}},null,"2 stk",null,2878710,"JK30","7 kA"]
[null,null,"Ik maks 1s:",{"$f":"CONCATENATE(I20,\"kA\",\"-\",\"1s\",\"-\",2.5)","v":{"$error":"#VALUE!"}},null,"B",null,"Faselisse",{"$f":"VLOOKUP(G17,Kilde!F:G,2,FALSE)","v":{"$error":"#N/A"}},null,"1 stk (midtre fase)",null,2878711,"JKS30","7 kA"]
[null,null,"Ik maks 0,5s:",{"$f":"CONCATENATE(I21,\"kA\",\"-\",\"0,5s\",\"-\",2.5)","v":{"$error":"#VALUE!"}},null,"B",null,"Faselisse",{"$f":"VLOOKUP(G18,Kilde!F:G,2,FALSE)","v":{"$error":"#N/A"}},null,"1 stk (ytre fase)",null,2878708,"JK150","24 kA",2878710,2878711]
[null,null,"Prod. d.m.år",{"$f":"NOW()","v":"2021-12-16T14:59:16.800"},null,"C",null,"Jordlisse",{"$f":"VLOOKUP(J16,Kilde!F:G,2,FALSE)","v":{"$error":"#N/A"}},null,"1 stk",null,2878728,"NB2025M","24 kA"]
[null,null,"IEC 61230:2008",null,null,"D",null,"Jordklemme",{"$f":"VLOOKUP(E22,Kilde!N:O,2,FALSE)","v":0},null,"1 stk",null,2878729,"F1","24 kA",null,null,"Tverrsnitt","IK1/1 sek i kA","IK1/0,5 sek i kA"]
[null,null,null,null,null,null,null,null,null,null,null,null,2878762,"JLA2N","24 kA"]
[null,null,null,null,null,null,null,null,null,null,null,null,2878763,"JLA2NSP","24 kA"]
[null,null,null,null,null,null,null,null,null,null,null,null,null,null,null,null,null,"25mm²",5,7]
[null,null,null,null,null,null,null,null,null,null,null,null,null,null,null,null,null,"35mm²",7,10]
[null,null,null,null,null,null,null,null,null,null,null,null,null,null,null,null,null,"50mm²",10,14]
[null,null,null,null,null,null,null,null,null,null,null,null,null,null,null,null,null,"70mm²",14,20]
[null,null,null,null,null,null,null,null,null,null,null,null,2878708,2878728,2878729,2878762,2878763,"95mm²",19,27]
[null,null,null,null,null,null,null,null,null,null,null,null,null,null,null,null,null,"120mm²",24,34]

{"sheet":"3B","index":4,"n_rows":41,"n_cols":20,"rows_kept":41,"cut":false,"hidden":false,"merged":[[27,18,28,19],[32,17,34,17],[32,18,34,18],[32,19,34,19],[6,8,12,10],[15,18,17,18],[15,19,17,19],[29,3,29,4],[13,1,14,1],[13,2,14,2],[13,3,14,3],[13,4,14,4],[16,2,16,3],[17,2,17,3],[30,3,30,4],[31,3,31,4],[26,12,26,14],[0,2,1,8],[1,12,1,13],[1,14,1,17],[13,7,14,7],[13,8,14,8],[4,5,4,10],[19,1,20,2],[19,4,20,4],[21,1,21,2],[26,3,26,4],[27,3,27,4],[13,5,14,5],[5,5,5,8]]}
[]
[null,null,null,null,null,null,null,null,null,null,null,null,"Faseklemmer",null,"Maks kortslutningsstrøm kA/1sek"]
[null,null,null,null,null,null,null,null,null,null,null,null,"El nr","Type","Line","Skinne","rør / bolt","Krok"]
[null,null,null,null,null,null,null,null,null,null,null,null,2878700,"JFS17","-","-","-",24]
[null,null,null,null,null,"Jordings- og kortslutningsapparater",null,null,null,null,null,null,2878702,"JK39FN",19,14,14,"-"]
[null,null,null,null,null,"I henhold til NEK-EN 61230:2008",null,null,null,null,"Kommentarfelt",null,2878703,"JK39FN SP",19,14,14,"-"]
[null,null,null,null,null,null,null,null,null,null,null,null,2878705,"JK38",14,14,14,"-"]
[null,null,null,null,null,null,null,null,null,null,null,null,2878706,"JK42",24,"-","-","-"]
[null,null,null,null,null,null,null,null,null,null,null,null,2878778,"JK37",14,14,14,"-"]
[null,null,null,null,null,null,null,null,null,null,null,null,2878796,"PARA",10,"-","-","-"]
[null,null,null,null,null,null,null,null,null,null,null,null,2879202,784470,14,"-","-","-"]
[null,null,null,null,null,null,null,null,null,null,null,null,2879238,"784470S",14,"-","-","-"]
[null,null,null,null,null,null,null,null,null,null,null,null,2879571,"NB2025BN",24,24,24,"-"]
[null,"Type","kA/1 sek","eller","Tverrsnitt lisse (B)","Lengde lisse (B)",null,"Tverrsnitt lisse (C)","Lengde \nlisse (C)"]
[null,null,null,null,null,null,null,null,null,null,null,null,null,null,null,null,null,null,"IEC 61230:2008 Table 2"]
[null,"3B","-",null,"-","-",{"$f":"E16&\"|\"&F16","v":"-|-"},"-","-",{"$f":"H16&\"|\"&I16","v":"-|-"},null,null,null,null,null,null,null,null,"CU tverrsnitt mm²","Min. CU ekvivalent mm²"]
[null,null,"Midtre fase",null,"-","-",{"$f":"E17&\"|\"&F17","v":"-|-"}]
[null,null,"Ytre fase",null,"-","-",{"$f":"E18&\"|\"&F18","v":"-|-"}]
[null,null,null,null,null,null,null,null,null,null,null,null,2878700,"2878702-03",2878705,2878706,2878778,null,25,16]
[null,"Faseklemme\n(A)",null,null,"Jordklemme\n(D)",null,null,"Ikmaks/1s=",{"$f":"E16/5","v":{"$error":"#VALUE!"}},null,null,null,null,null,null,null,null,null,35,16]
[null,null,null,null,null,null,null,"Ikmaks/0,5s=",{"$f":"I20*1.41","v":{"$error":"#VALUE!"}},null,null,null,null,null,null,null,null,null,50,25]
[null,"-",null,null,"-",null,null,null,null,null,null,null,null,null,null,null,null,null,70,35]
[null,null,null,null,null,null,null,null,null,null,null,null,null,null,null,null,null,null,95,35]
[null,null,null,null,null,null,null,null,null,null,null,null,2878796,2879202,2879238,2879571,null,null,120,50]
[]
[]
[null,null,"TYPE:",{"$f":"CONCATENATE(B16,\" \",B22,\"/\",E22)","v":"3B -/-"},null,null,null,"Forslag:",null,null,null,null,"Jordfesteklemmer"]
[null,null,"Faselisse:",{"$f":"CONCATENATE(E16,\"mm²\")","v":"-mm²"},null,"A",null,"Faseklemme",{"$f":"VLOOKUP(B22,Kilde!J:K,2,FALSE)","v":0},null,"5 stk",null,"El nr","Type","Ikmaks/1sek",null,null,null,"Redusert tverrsnitt jordlisse punkt \"C\""]
[null,null,"Jordlisse:",{"$f":"CONCATENATE(H16,\"mm²\")","v":"-mm²"},null,"B",null,"Faselisse",{"$f":"VLOOKUP(G16,Kilde!$F:$G,2,FALSE)","v":{"$error":"#N/A"}},null,"2 stk",null,2878708,"JK150","24 kA"]
[null,null,"Ik maks 1s:",{"$f":"CONCATENATE(I20,\"kA\",\"-\",\"1s\",\"-\",2.5)","v":{"$error":"#VALUE!"}},null,"B",null,"Faselisse",{"$f":"VLOOKUP(G17,Kilde!F:G,2,FALSE)","v":{"$error":"#N/A"}},null,"1 stk (midtre fase)",null,2878728,"NB2025M","24 kA"]
[null,null,"Ik maks 0,5s:",{"$f":"CONCATENATE(I21,\"kA\",\"-\",\"0,5s\",\"-\",2.5)","v":{"$error":"#VALUE!"}},null,"B",null,"Faselisse",{"$f":"VLOOKUP(G18,Kilde!F:G,2,FALSE)","v":{"$error":"#N/A"}},null,"1 stk (ytre fase)",null,2878729,"F1","24 kA"]
[null,null,"Prod. d.m.år",{"$f":"NOW()","v":"2021-12-16T14:59:16.800"},null,"C",null,"Jordlisse",{"$f":"VLOOKUP(J16,Kilde!F:G,2,FALSE)","v":{"$error":"#N/A"}},null,"1 stk",null,2878762,"JLA2N","24 kA"]
[null,null,"IEC 61230:2008",null,null,"D",null,"Jordklemme",{"$f":"VLOOKUP(E22,Kilde!N:O,2,FALSE)","v":0},null,"1 stk",null,2878763,"JLA2NSP","24 kA",null,null,"Tverrsnitt","IK1/1 sek i kA","IK1/0,5 sek i kA"]
[]
[]
[null,null,null,null,null,null,null,null,null,null,null,null,null,null,null,null,null,"25mm²",5,7]
[null,null,null,null,null,null,null,null,null,null,null,null,null,null,null,null,null,"35mm²",7,10]
[null,null,null,null,null,null,null,null,null,null,null,null,null,null,null,null,null,"50mm²",10,14]
[null,null,null,null,null,null,null,null,null,null,null,null,null,null,null,null,null,"70mm²",14,20]
[null,null,null,null,null,null,null,null,null,null,null,null,2878708,2878728,2878729,2878762,2878763,"95mm²",19,27]
[null,null,null,null,null,null,null,null,null,null,null,null,null,null,null,null,null,"120mm²",24,34]

{"sheet":"3C","index":5,"n_rows":41,"n_cols":20,"rows_kept":41,"cut":false,"hidden":false,"merged":[[32,19,34,19],[6,8,12,10],[32,17,34,17],[32,18,34,18],[29,3,29,4],[17,2,17,3],[30,3,30,4],[31,3,31,4],[26,12,26,14],[19,1,20,2],[19,4,20,4],[21,1,21,2],[26,3,26,4],[27,3,27,4],[13,1,14,1],[13,2,14,2],[13,3,14,3],[13,4,14,4],[16,2,16,3],[0,2,1,8],[1,12,1,13],[1,14,1,17],[4,5,4,10],[13,5,14,5],[5,5,5,8]]}
[]
[null,null,null,null,null,null,null,null,null,null,null,null,"Faseklemmer",null,"Maks kortslutningsstrøm kA/1sek"]
[null,null,null,null,null,null,null,null,null,null,null,null,"El nr","Type","Line","Skinne","rør / bolt","Krok"]
[null,null,null,null,null,null,null,null,null,null,null,null,2878700,"JFS17","-","-","-",24]
[null,null,null,null,null,"Jordings- og kortslutningsapparater",null,null,null,null,null,null,2878702,"JK39FN",19,14,14,"-"]
[null,null,null,null,null,"I henhold til NEK-EN 61230:2008",null,null,null,null,"Kommentarfelt",null,2878703,"JK39FN SP",19,14,14,"-"]
[null,null,null,null,null,null,null,null,null,null,null,null,2878705,"JK38",14,14,14,"-"]
[null,null,null,null,null,null,null,null,null,null,null,null,2878706,"JK42",24,"-","-","-"]
[null,null,null,null,null,null,null,null,null,null,null,null,2878778,"JK37",14,14,14,"-"]
[null,null,null,null,null,null,null,null,null,null,null,null,2878796,"PARA",10,"-","-","-"]
[null,null,null,null,null,null,null,null,null,null,null,null,2879202,784470,14,"-","-","-"]
[null,null,null,null,null,null,null,null,null,null,null,null,2879238,"784470S",14,"-","-","-"]
[null,null,null,null,null,null,null,null,null,null,null,null,2879571,"NB2025BN",24,24,24,"-"]
[null,"Type","kA/1 sek","eller","Tverrsnitt lisse (B)","Lengde lisse (B)"]
[]
[null,"3C","-",null,"-","-",{"$f":"E16&\"|\"&F16","v":"-|-"},null,null,{"$f":"H16&\"|\"&I16","v":"|"}]
[null,null,"Midtre fase",null,"-","-",{"$f":"E17&\"|\"&F17","v":"-|-"}]
[null,null,"Ytre fase",null,"-","-",{"$f":"E18&\"|\"&F18","v":"-|-"}]
[null,null,null,null,null,null,null,null,null,null,null,null,2878700,"2878702-03",2878705,2878706,2878778]
[null,"Faseklemme\n(A)",null,null,"Jordklemme\n(D)",null,null,"Ikmaks/1s=",{"$f":"E16/5","v":{"$error":"#VALUE!"}}]
[null,null,null,null,null,null,null,"Ikmaks/0,5s=",{"$f":"I20*1.41","v":{"$error":"#VALUE!"}}]
[null,"-",null,null,"-"]
[]
[null,null,null,null,null,null,null,null,null,null,null,null,2878796,2879202,2879238,2879571]
[]
[]
[null,null,"TYPE:",{"$f":"CONCATENATE(B16,\" \",B22,\"/\",E22)","v":"3C -/-"},null,null,null,"Forslag:",null,null,null,null,"Jordfesteklemmer"]
[null,null,"Faselisse:",{"$f":"CONCATENATE(E16,\"mm²\")","v":"-mm²"},null,"A",null,"Faseklemme",{"$f":"VLOOKUP(B22,Kilde!J:K,2,FALSE)","v":0},null,"3 stk",null,"El nr","Type","Ikmaks/1sek"]
[null,null,"Jordlisse:",{"$f":"CONCATENATE(H16,\"mm²\")","v":"mm²"},null,"B",null,"Faselisse",{"$f":"VLOOKUP(G16,Kilde!$F:$G,2,FALSE)","v":{"$error":"#N/A"}},null,"3 stk",null,2878708,"JK150","24 kA"]
[null,null,"Ik maks 1s:",{"$f":"CONCATENATE(I20,\"kA\",\"-\",\"1s\",\"-\",2.5)","v":{"$error":"#VALUE!"}},null,"B",null,"Faselisse",{"$f":"VLOOKUP(G17,Kilde!F:G,2,FALSE)","v":{"$error":"#N/A"}},null,"1 stk (midtre fase)",null,2878728,"NB2025M","24 kA"]
[null,null,"Ik maks 0,5s:",{"$f":"CONCATENATE(I21,\"kA\",\"-\",\"0,5s\",\"-\",2.5)","v":{"$error":"#VALUE!"}},null,"B",null,"Faselisse",{"$f":"VLOOKUP(G18,Kilde!F:G,2,FALSE)","v":{"$error":"#N/A"}},null,"2 stk (ytre fase)",null,2878729,"F1","24 kA"]
[null,null,"Prod. d.m.år",{"$f":"NOW()","v":"2021-12-16T14:59:16.800"},null,"D",null,"Jordklemme",{"$f":"VLOOKUP(E22,Kilde!N:O,2,FALSE)","v":0},null,"3 stk",null,2878762,"JLA2N","24 kA"]
[null,null,"IEC 61230:2008",null,null,null,null,null,null,null,null,null,2878763,"JLA2NSP","24 kA",null,null,"Tverrsnitt","IK1/1 sek i kA","IK1/0,5 sek i kA"]
[]
[]
[null,null,null,null,null,null,null,null,null,null,null,null,null,null,null,null,null,"25mm²",5,7]
[null,null,null,null,null,null,null,null,null,null,null,null,null,null,null,null,null,"35mm²",7,10]
[null,null,null,null,null,null,null,null,null,null,null,null,null,null,null,null,null,"50mm²",10,14]
[null,null,null,null,null,null,null,null,null,null,null,null,null,null,null,null,null,"70mm²",14,20]
[null,null,null,null,null,null,null,null,null,null,null,null,2878708,2878728,2878729,2878762,2878763,"95mm²",19,27]
[null,null,null,null,null,null,null,null,null,null,null,null,null,null,null,null,null,"120mm²",24,34]

{"sheet":"Kilde","index":6,"n_rows":135,"n_cols":19,"rows_kept":135,"cut":false,"hidden":true,"merged":[]}
[]
["Type","kA/1 sek","Tverrsnitt","Tverrsnitt jordelisse (B) ","Lengde","FinnRad","Elnummer","Beskrivelse","kA/1s","Faseklemmer",null,null,"kA/1s","Jordklemme",null,null,"kA/1s"]
["-","-","-","-","-","-",null,null,null,"-",null,null,null,"-"]
["1A","≤ 5",25,25,0.6,{"$f":"D4&\"|\"&E4","v":"25|0,6"},2879001,"Jordlisse 25mm² 0,6 meter med kabelsko på begge ender - halogenfri","5 kA/1s","JFS17",2878700,"Faseklemme 120mm²","24 kA/1s","JK30",2878710,"Jordfesteklemme 70mm² Ø30mm","7 kA/1s"]
["2A","≤ 7",35,25,0.8,{"$f":"D5&\"|\"&E5","v":"25|0,8"},2879002,"Jordlisse 25mm² 0,8 meter med kabelsko på begge ender - halogenfri","5 kA/1s","JK39FN",2878702,"Faseklemme 95mm² Ø42mm","19 kA/1s","JKS30",2878711,"Jordfesteklemme 70mm² Ø18mm","7 kA/1s","Elnr. 2878700 Type JFS17","Elnr. 2878710 Type JK30"]
["3A","≤ 10",50,25,1,"25|1",2879003,"Jordlisse 25mm² 1,0 meter med kabelsko på begge ender - halogenfri","5 kA/1s","JK39FNSP",2878703,"Faseklemme 95mm² Ø65mm","19 kA/1s","JK150",2878708,"Jordfesteklemme 70mm² Ø20mm","24 kA/1s","Elnr. 2878702 Type JK39FN","Elnr. 2878711 Type JKS30"]
["3B","≤ 14",70,25,1.2,"25|1,2",2879004,"Jordlisse 25mm² 1,2 meter med kabelsko på begge ender - halogenfri","5 kA/1s","JK38",2878705,"Jordingsstang med JK38 klemme","14 kA/1s","NB2025M",2878728,"Jordfesteklemme","24 kA/1s","Elnr. 2878703 Type JK39FNSP","Elnr. 2878708 JK150"]
["3C","≤ 19",95,25,1.5,"25|1,5",2879005,"Jordlisse 25mm² 1,5 meter med kabelsko på begge ender - halogenfri","5 kA/1s","JK42",2878706,"Faseklemme kun 120mm² Ø42mm","24 kA/1s","F1",2878729,"Jordfesteklemme 120mm² Ø30mm","24 kA/1s","Elnr. 2878705 Type JK38","Elnr. 2878729 Type F1"]
[null,"≤ 24",120,25,1.7,"25|1,7",2879006,"Jordlisse 25mm² 1,7 meter med kabelsko på begge ender - halogenfri","5 kA/1s","JK37",2878778,"Faseklemme 70mm² Ø23mm","14 kA/1s","JLA2N",2878762,"Jordingshake JLA2N","24 kA/1s","Elnr. 2878706 Type JK42","Elnr. 2878762 Type JLA2N"]
[null,"N/A",null,25,2,"25|2",2879007,"Jordlisse 25mm² 2,0 meter med kabelsko på begge ender - halogenfri","5 kA/1s","PARA",2878796,"Faseklemme 50mm² Ø32mm Linediameter 10-32mm","10 kA/1s","JLA2NSP",2878763,"Jordingshake JLA2NSP 25-50mm²","24 kA/1s","Elnr. 2878778 Type JK37","Elnr. 2878763 Type JLA2NSP"]
[null,null,null,25,2.25,"25|2,25",2879008,"Jordlisse 25mm² 2,25 meter med kabelsko på begge ender - halogenfri","5 kA/1s","784470",2879202,"Faseklemme 70mm² Ø30mm øyekrok","14 kA/1s","-",null,null,null,"Elnr. 2878796 Type PARA"]
[null,null,null,25,2.5,"25|2,5",2879009,"Jordlisse 25mm² 2,5 meter med kabelsko på begge ender - halogenfri","5 kA/1s","784470S",2879238,"Faseklemme 70mm² Ø30mm spindel","14 kA/1s","JK150",2878708,"Jordfesteklemme 70mm² Ø20mm","24 kA/1s","Elnr. 2879202 Type 784470"]
[null,null,null,25,2.75,"25|2,75",2879010,"Jordlisse 25mm² 2,75 meter med kabelsko på begge ender - halogenfri","5 kA/1s","NB2025BN",2879571,"Faseklemme 120mm² Ø30mm For line, skinne og kulebolt","24 kA/1s","NB2025M",2878728,"Jordfesteklemme","24 kA/1s","Elnr. 2879238 Type 784470S"]
[null,null,null,25,3,"25|3",2879011,"Jordlisse 25mm² 3,0 meter med kabelsko på begge ender - halogenfri","5 kA/1s",null,null,null,null,"F1",2878729,"Jordfesteklemme 120mm² Ø30mm","24 kA/1s","Elnr. 2879571 Type NB2025BN"]
[null,null,null,25,3.5,"25|3,5",2879012,"Jordlisse 25mm² 3,5 meter med kabelsko på begge ender - halogenfri","5 kA/1s",null,null,null,null,"JLA2N",2878762,"Jordingshake JLA2N","24 kA/1s"]
[null,null,null,25,4,"25|4",2879013,"Jordlisse 25mm² 4,0 meter med kabelsko på begge ender - halogenfri","5 kA/1s",null,null,null,null,"JLA2NSP",2878763,"Jordingshake JLA2NSP 25-50mm²","24 kA/1s"]
[null,null,null,25,4.5,"25|4,5",2879014,"Jordlisse 25mm² 4,5 meter med kabelsko på begge ender - halogenfri","5 kA/1s"]
[null,null,null,25,5,"25|5",2879015,"Jordlisse 25mm² 5,0 meter med kabelsko på begge ender - halogenfri","5 kA/1s"]
[null,null,null,25,6,"25|6",2879016,"Jordlisse 25mm² 6,0 meter med kabelsko på begge ender - halogenfri","5 kA/1s"]
[null,null,null,25,7,"25|7",2879017,"Jordlisse 25mm² 7,0 meter med kabelsko på begge ender - halogenfri","5 kA/1s"]
[null,null,null,25,8,"25|8",2879018,"Jordlisse 25mm² 8,0 meter med kabelsko på begge ender - halogenfri","5 kA/1s"]
[null,null,null,25,10,"25|10",2879166,"Jordlisse 25mm² 10,0 meter med kabelsko på begge ender - halogenfri","5 kA/1s"]
[null,null,null,25,12,"25|12",2879167,"Jordlisse 25mm² 12,0 meter med kabelsko på begge ender - halogenfri","5 kA/1s"]
[null,null,null,25,15,"25|15",2879168,"Jordlisse 25mm² 15,0 meter med kabelsko på begge ender - halogenfri","5 kA/1s"]
[null,null,null,25,20,"25|20",2879181,"Jordlisse 25mm² 20,0 meter med kabelsko på begge ender - halogenfri","5 kA/1s"]
[null,null,null,35,0.6,{"$f":"D26&\"|\"&E26","v":"35|0,6"},2879019,"Jordlisse 35mm² 0,6 meter med kabelsko på begge ender - halogenfri","7 kA/1s"]
[null,null,null,35,0.8,{"$f":"D27&\"|\"&E27","v":"35|0,8"},2879020,"Jordlisse 35mm² 0,8 meter med kabelsko på begge ender - halogenfri","7 kA/1s"]
[null,null,null,35,1,"35|1",2879021,"Jordlisse 35mm² 1,0 meter med kabelsko på begge ender - halogenfri","7 kA/1s"]
[null,null,null,35,1.2,"35|1,2",2879022,"Jordlisse 35mm² 1,2 meter med kabelsko på begge ender - halogenfri","7 kA/1s"]
[null,null,null,35,1.5,"35|1,5",2879023,"Jordlisse 35mm² 1,5 meter med kabelsko på begge ender - halogenfri","7 kA/1s"]
[null,null,null,35,1.7,"35|1,7",2879024,"Jordlisse 35mm² 1,7 meter med kabelsko på begge ender - halogenfri","7 kA/1s"]
[null,null,null,35,2,"35|2",2879025,"Jordlisse 35mm² 2,0 meter med kabelsko på begge ender - halogenfri","7 kA/1s"]
[null,null,null,35,2.25,"35|2,25",2879026,"Jordlisse 35mm² 2,25 meter med kabelsko på begge ender - halogenfri","7 kA/1s"]
[null,null,null,35,2.5,"35|2,5",2879027,"Jordlisse 35mm² 2,5 meter med kabelsko på begge ender - halogenfri","7 kA/1s"]
[null,null,null,35,2.75,"35|2,75",2879028,"Jordlisse 35mm² 2,75 meter med kabelsko på begge ender - halogenfri","7 kA/1s"]
[null,null,null,35,3,"35|3",2879029,"Jordlisse 35mm² 3,0 meter med kabelsko på begge ender - halogenfri","7 kA/1s"]
[null,null,null,35,3.5,"35|3,5",2879030,"Jordlisse 35mm² 3,5 meter med kabelsko på begge ender - halogenfri","7 kA/1s"]
[null,null,null,35,4,"35|4",2879031,"Jordlisse 35mm² 4,0 meter med kabelsko på begge ender - halogenfri","7 kA/1s"]
[null,null,null,35,4.5,"35|4,5",2879032,"Jordlisse 35mm² 4,5 meter med kabelsko på begge ender - halogenfri","7 kA/1s"]
[null,null,null,35,5,"35|5",2879033,"Jordlisse 35mm² 5,0 meter med kabelsko på begge ender - halogenfri","7 kA/1s"]
[null,null,null,35,6,"35|6",2879034,"Jordlisse 35mm² 6,0 meter med kabelsko på begge ender - halogenfri","7 kA/1s"]
[null,null,null,35,7,"35|7",2879035,"Jordlisse 35mm² 7,0 meter med kabelsko på begge ender - halogenfri","7 kA/1s"]
[null,null,null,35,8,"35|8",2879036,"Jordlisse 35mm² 8,0 meter med kabelsko på begge ender - halogenfri","7 kA/1s"]
[null,null,null,35,10,"35|10",2879169,"Jordlisse 35mm² 10,0 meter med kabelsko på begge ender - halogenfri","7 kA/1s"]
[null,null,null,35,12,"35|12",2879170,"Jordlisse 35mm² 12,0 meter med kabelsko på begge ender - halogenfri","7 kA/1s"]
[null,null,null,35,15,"35|15",2879171,"Jordlisse 35mm² 15,0 meter med kabelsko på begge ender - halogenfri","7 kA/1s"]
[null,null,null,35,20,"35|20",2879182,"Jordlisse 35mm² 20,0 meter med kabelsko på begge ender - halogenfri","7 kA/1s"]
[null,null,null,50,0.6,"50|0,6",2879037,"Jordlisse 50mm² 0,6 meter med kabelsko på begge ender - halogenfri","10 kA/1s"]
[null,null,null,50,0.8,"50|0,8",2879038,"Jordlisse 50mm² 0,8 meter med kabelsko på begge ender - halogenfri","10 kA/1s"]
[null,null,null,50,1,"50|1",2879039,"Jordlisse 50mm² 1,0 meter med kabelsko på begge ender - halogenfri","10 kA/1s"]
[null,null,null,50,1.2,"50|1,2",2879040,"Jordlisse 50mm² 1,2 meter med kabelsko på begge ender - halogenfri","10 kA/1s"]
[null,null,null,50,1.5,"50|1,5",2879041,"Jordlisse 50mm² 1,5 meter med kabelsko på begge ender - halogenfri","10 kA/1s"]
[null,null,null,50,1.7,"50|1,7",2879042,"Jordlisse 50mm² 1,7 meter med kabelsko på begge ender - halogenfri","10 kA/1s"]
[null,null,null,50,2,"50|2",2879043,"Jordlisse 50mm² 2,0 meter med kabelsko på begge ender - halogenfri","10 kA/1s"]
[null,null,null,50,2.25,"50|2,25",2879044,"Jordlisse 50mm² 2,25 meter med kabelsko på begge ender - halogenfri","10 kA/1s"]
[null,null,null,50,2.5,"50|2,5",2879045,"Jordlisse 50mm² 2,5 meter med kabelsko på begge ender - halogenfri","10 kA/1s"]
[null,null,null,50,2.75,"50|2,75",2879046,"Jordlisse 50mm² 2,75 meter med kabelsko på begge ender - halogenfri","10 kA/1s"]
[null,null,null,50,3,"50|3",2879047,"Jordlisse 50mm² 3,0 meter med kabelsko på begge ender - halogenfri","10 kA/1s"]
[null,null,null,50,3.5,"50|3,5",2879048,"Jordlisse 50mm² 3,5 meter med kabelsko på begge ender - halogenfri","10 kA/1s"]
[null,null,null,50,4,"50|4",2879049,"Jordlisse 50mm² 4,0 meter med kabelsko på begge ender - halogenfri","10 kA/1s"]
[null,null,null,50,4.5,"50|4,5",2879050,"Jordlisse 50mm² 4,5 meter med kabelsko på begge ender - halogenfri","10 kA/1s"]
[null,null,null,50,5,"50|5",2879051,"Jordlisse 50mm² 5,0 meter med kabelsko på begge ender - halogenfri","10 kA/1s"]
[null,null,null,50,6,"50|6",2879052,"Jordlisse 50mm² 6,0 meter med kabelsko på begge ender - halogenfri","10 kA/1s"]
[null,null,null,50,7,"50|7",2879053,"Jordlisse 50mm² 7,0 meter med kabelsko på begge ender - halogenfri","10 kA/1s"]
[null,null,null,50,8,"50|8",2879054,"Jordlisse 50mm² 8,0 meter med kabelsko på begge ender - halogenfri","10 kA/1s"]
[null,null,null,50,10,"50|10",2879183,"Jordlisse 50mm² 10,0 meter med kabelsko på begge ender - halogenfri","10 kA/1s"]
[null,null,null,50,12,"50|12",2879184,"Jordlisse 50mm² 12,0 meter med kabelsko på begge ender - halogenfri","10 kA/1s"]
[null,null,null,50,15,"50|15",2879174,"Jordlisse 50mm² 15,0 meter med kabelsko på begge ender - halogenfri","10 kA/1s"]
[null,null,null,50,20,"50|20",2879185,"Jordlisse 50mm² 20,0 meter med kabelsko på begge ender - halogenfri","10 kA/1s"]
[null,null,null,70,0.6,"70|0,6",2879055,"Jordlisse 70mm² 0,6 meter med kabelsko på begge ender - halogenfri","14 kA/1s"]
[null,null,null,70,0.8,"70|0,8",2879056,"Jordlisse 70mm² 0,8 meter med kabelsko på begge ender - halogenfri","14 kA/1s"]
[null,null,null,70,1,"70|1",2879057,"Jordlisse 70mm² 1,0 meter med kabelsko på begge ender - halogenfri","14 kA/1s"]
[null,null,null,70,1.2,"70|1,2",2879058,"Jordlisse 70mm² 1,2 meter med kabelsko på begge ender - halogenfri","14 kA/1s"]
[null,null,null,70,1.5,"70|1,5",2879059,"Jordlisse 70mm² 1,5 meter med kabelsko på begge ender - halogenfri","14 kA/1s"]
[null,null,null,70,1.7,"70|1,7",2879060,"Jordlisse 70mm² 1,7 meter med kabelsko på begge ender - halogenfri","14 kA/1s"]
[null,null,null,70,2,"70|2",2879061,"Jordlisse 70mm² 2,0 meter med kabelsko på begge ender - halogenfri","14 kA/1s"]
[null,null,null,70,2.25,"70|2,25",2879062,"Jordlisse 70mm² 2,25 meter med kabelsko på begge ender - halogenfri","14 kA/1s"]
[null,null,null,70,2.5,"70|2,5",2879063,"Jordlisse 70mm² 2,5 meter med kabelsko på begge ender - halogenfri","14 kA/1s"]
[null,null,null,70,2.75,"70|2,75",2879064,"Jordlisse 70mm² 2,75 meter med kabelsko på begge ender - halogenfri","14 kA/1s"]
[null,null,null,70,3,"70|3",2879065,"Jordlisse 70mm² 3,0 meter med kabelsko på begge ender - halogenfri","14 kA/1s"]
[null,null,null,70,3.5,"70|3,5",2879066,"Jordlisse 70mm² 3,5 meter med kabelsko på begge ender - halogenfri","14 kA/1s"]
[null,null,null,70,4,"70|4",2879067,"Jordlisse 70mm² 4,0 meter med kabelsko på begge ender - halogenfri","14 kA/1s"]
[null,null,null,70,4.5,"70|4,5",2879068,"Jordlisse 70mm² 4,5 meter med kabelsko på begge ender - halogenfri","14 kA/1s"]
[null,null,null,70,5,"70|5",2879069,"Jordlisse 70mm² 5,0 meter med kabelsko på begge ender - halogenfri","14 kA/1s"]
[null,null,null,70,6,"70|6",2879070,"Jordlisse 70mm² 6,0 meter med kabelsko på begge ender - halogenfri","14 kA/1s"]
[null,null,null,70,7,"70|7",2879071,"Jordlisse 70mm² 7,0 meter med kabelsko på begge ender - halogenfri","14 kA/1s"]
[null,null,null,70,8,"70|8",2879072,"Jordlisse 70mm² 8,0 meter med kabelsko på begge ender - halogenfri","14 kA/1s"]
[null,null,null,70,10,"70|10",2879186,"Jordlisse 70mm² 10,0 meter med kabelsko på begge ender - halogenfri","14 kA/1s"]
[null,null,null,70,12,"70|12",2879184,"Jordlisse 50mm² 12,0 meter med kabelsko på begge ender - halogenfri","14 kA/1s"]
[null,null,null,70,15,"70|15",2879188,"Jordlisse 70mm² 15,0 meter med kabelsko på begge ender - halogenfri","14 kA/1s"]
[null,null,null,70,20,{"$f":"D91&\"|\"&E91","v":"70|20"},2879189,"Jordlisse 70mm² 20,0 meter med kabelsko på begge ender - halogenfri","14 kA/1s"]
[null,null,null,95,0.6,"95|0,6",2879073,"Jordlisse 95mm² 0,6 meter med kabelsko på begge ender - halogenfri","19 kA/1s"]
[null,null,null,95,0.8,"95|0,8",2879074,"Jordlisse 95mm² 0,8 meter med kabelsko på begge ender - halogenfri","19 kA/1s"]
[null,null,null,95,1,"95|1",2879075,"Jordlisse 95mm² 1,0 meter med kabelsko på begge ender - halogenfri","19 kA/1s"]
[null,null,null,95,1.2,"95|1,2",2879076,"Jordlisse 95mm² 1,2 meter med kabelsko på begge ender - halogenfri","19 kA/1s"]
[null,null,null,95,1.5,"95|1,5",2879077,"Jordlisse 95mm² 1,5 meter med kabelsko på begge ender - halogenfri","19 kA/1s"]
[null,null,null,95,1.7,"95|1,7",2879078,"Jordlisse 95mm² 1,7 meter med kabelsko på begge ender - halogenfri","19 kA/1s"]
[null,null,null,95,2,"95|2",2879079,"Jordlisse 95mm² 2,0 meter med kabelsko på begge ender - halogenfri","19 kA/1s"]
[null,null,null,95,2.25,"95|2,25",2879080,"Jordlisse 95mm² 2,25 meter med kabelsko på begge ender - halogenfri","19 kA/1s"]
[null,null,null,95,2.5,"95|2,5",2879081,"Jordlisse 95mm² 2,5 meter med kabelsko på begge ender - halogenfri","19 kA/1s"]
[null,null,null,95,2.75,"95|2,75",2879082,"Jordlisse 95mm² 2,75 meter med kabelsko på begge ender - halogenfri","19 kA/1s"]
[null,null,null,95,3,"95|3",2879083,"Jordlisse 95mm² 3,0 meter med kabelsko på begge ender - halogenfri","19 kA/1s"]
[null,null,null,95,3.5,"95|3,5",2879084,"Jordlisse 95mm² 3,5 meter med kabelsko på begge ender - halogenfri","19 kA/1s"]
[null,null,null,95,4,"95|4",2879085,"Jordlisse 95mm² 4,0 meter med kabelsko på begge ender - halogenfri","19 kA/1s"]
[null,null,null,95,4.5,"95|4,5",2879086,"Jordlisse 95mm² 4,5 meter med kabelsko på begge ender - halogenfri","19 kA/1s"]
[null,null,null,95,5,"95|5",2879087,"Jordlisse 95mm² 5,0 meter med kabelsko på begge ender - halogenfri","19 kA/1s"]
[null,null,null,95,6,"95|6",2879088,"Jordlisse 95mm² 6,0 meter med kabelsko på begge ender - halogenfri","19 kA/1s"]
[null,null,null,95,7,"95|7",2879089,"Jordlisse 95mm² 7,0 meter med kabelsko på begge ender - halogenfri","19 kA/1s"]
[null,null,null,95,8,"95|8",2879090,"Jordlisse 95mm² 8,0 meter med kabelsko på begge ender - halogenfri","19 kA/1s"]
[null,null,null,95,10,"95|10",2879190,"Jordlisse 95mm² 10,0 meter med kabelsko på begge ender - halogenfri","19 kA/1s"]
[null,null,null,95,12,"95|12",2879191,"Jordlisse 95mm² 12,0 meter med kabelsko på begge ender - halogenfri","19 kA/1s"]
[null,null,null,95,15,"95|15",2879192,"Jordlisse 95mm² 15,0 meter med kabelsko på begge ender - halogenfri","19 kA/1s"]
[null,null,null,95,20,"95|20",2879193,"Jordlisse 95mm² 20,0 meter med kabelsko på begge ender - halogenfri","19 kA/1s"]
[null,null,null,120,0.6,"120|0,6",2879101,"Jordlisse 120mm² 0,6 meter med kabelsko på begge ender - halogenfri","24 kA/1s"]
[null,null,null,120,0.8,"120|0,8",2879102,"Jordlisse 120mm² 0,8 meter med kabelsko på begge ender - halogenfri","24 kA/1s"]
[null,null,null,120,1,"120|1",2879103,"Jordlisse 120mm² 1,0 meter med kabelsko på begge ender - halogenfri","24 kA/1s"]
[null,null,null,120,1.2,"120|1,2",2879104,"Jordlisse 120mm² 1,2 meter med kabelsko på begge ender - halogenfri","24 kA/1s"]
[null,null,null,120,1.5,"120|1,5",2879105,"Jordlisse 120mm² 1,5 meter med kabelsko på begge ender - halogenfri","24 kA/1s"]
[null,null,null,120,1.7,"120|1,7",2879106,"Jordlisse 120mm² 1,7 meter med kabelsko på begge ender - halogenfri","24 kA/1s"]
[null,null,null,120,2,"120|2",2879107,"Jordlisse 120mm² 2,0 meter med kabelsko på begge ender - halogenfri","24 kA/1s"]
[null,null,null,120,2.25,"120|2,25",2879108,"Jordlisse 120mm² 2,25 meter med kabelsko på begge ender - halogenfri","24 kA/1s"]
[null,null,null,120,2.5,"120|2,5",2879109,"Jordlisse 120mm² 2,5 meter med kabelsko på begge ender - halogenfri","24 kA/1s"]
[null,null,null,120,2.75,"120|2,75",2879110,"Jordlisse 120mm² 2,75 meter med kabelsko på begge ender - halogenfri","24 kA/1s"]
[null,null,null,120,3,"120|3",2879111,"Jordlisse 120mm² 3,0 meter med kabelsko på begge ender - halogenfri","24 kA/1s"]
[null,null,null,120,3.5,"120|3,5",2879112,"Jordlisse 120mm² 3,5 meter med kabelsko på begge ender - halogenfri","24 kA/1s"]
[null,null,null,120,4,"120|4",2879113,"Jordlisse 120mm² 4,0 meter med kabelsko på begge ender - halogenfri","24 kA/1s"]
[null,null,null,120,4.5,"120|4,5",2879114,"Jordlisse 120mm² 4,5 meter med kabelsko på begge ender - halogenfri","24 kA/1s"]
[null,null,null,120,5,"120|5",2879115,"Jordlisse 120mm² 5,0 meter med kabelsko på begge ender - halogenfri","24 kA/1s"]
[null,null,null,120,6,"120|6",2879116,"Jordlisse 120mm² 6,0 meter med kabelsko på begge ender - halogenfri","24 kA/1s"]
[null,null,null,120,7,"120|7",2879117,"Jordlisse 120mm² 7,0 meter med kabelsko på begge ender - halogenfri","24 kA/1s"]
[null,null,null,120,8,"120|8",2879118,"Jordlisse 120mm² 8,0 meter med kabelsko på begge ender - halogenfri","24 kA/1s"]
[null,null,null,120,10,"120|10",2879194,"Jordlisse 120mm² 10,0 meter med kabelsko på begge ender - halogenfri","24 kA/1s"]
[null,null,null,120,12,"120|12",2879195,"Jordlisse 120mm² 12,0 meter med kabelsko på begge ender - halogenfri","24 kA/1s"]
[null,null,null,120,15,"120|15",2879196,"Jordlisse 120mm² 15,0 meter med kabelsko på begge ender - halogenfri","24 kA/1s"]
[null,null,null,120,20,"120|20",2879197,"Jordlisse 120mm² 20,0 meter med kabelsko på begge ender - halogenfri","24 kA/1s"]